Cogmind - Beta 10.2 @@@ ROGUE MODE // 2021.06.22 @ 16:56:17 Player: Benight Result: Destroyed by as-68097 with Assembled Rifle Performance ------------- Evolutions (0) 0 Regions Visited (4) 800 Robots Destroyed (28) 140 Value Destroyed (508) 508 Prototype IDs (0) 0 Alien Tech Used (0) 0 Bonus (0) 0 TOTAL SCORE: 1448 Bonus ------- None Cogmind --------- Core Integrity 0/250 Matter 157/300 Energy 85/100 System Corruption 1% Temperature Cool (0) Movement Walking (120) Location -9/Mines Parts ------- > --- POWER (1) -------- (None) > --- PROPULSION (2) --- Aluminum Leg Aluminum Leg > --- UTILITY (2) ------ Large Storage Unit > --- WEAPON (2) ------- (None) > --- INVENTORY (10) --- Light Ion Engine Reinforced Ion Engine Light Treads Light Treads Heat Sink Medium Matter Pod (38) Signal Interpreter Light Armor Plating Peak State ------------ > --- POWER ------------ Light Nuclear Core > --- PROPULSION ------- Aluminum Leg Aluminum Leg > --- UTILITY ---------- Small Storage Unit Large Storage Unit > --- WEAPON ----------- Light Assault Rifle Light Assault Rifle > --- INVENTORY -------- Light Ion Engine Reinforced Ion Engine Light Treads Light Treads Aluminum Leg Heat Sink Medium Matter Pod Signal Interpreter Light Armor Plating Grenade Launcher [Rating: 10] Favorites ----------- Power Ion Engine Engine Ion Engine Power Core Light Nuclear Core Propulsion Aluminum Leg Leg Aluminum Leg Utility Small Storage Unit Storage Small Storage Unit Weapon Light Assault Rifle Energy Gun Small Laser Ballistic Gun Light Assault Rifle Launcher Grenade Launcher Special Melee Weapon Datajack Build | -11 -10 -10 -10 -9 ------- Run | Scr Mat Min Exi Min Slots Evolved . | . . . . . Power . | . . . . . Propulsion . | . . . . . Utility . | . . . . . Weapon . | . . . . . Parts Attached 30 | 4 7 11 . 8 Power 3 | 1 . 1 . 1 Engine 2 | 1 . 1 . . Core 1 | . . . . 1 Reactor . | . . . . . Propulsion 7 | 2 1 2 . 2 Treads . | . . . . . Leg 7 | 2 1 2 . 2 Wheel . | . . . . . Hover . | . . . . . Flight . | . . . . . Utility 2 | 1 1 . . . Device . | . . . . . Storage 2 | 1 1 . . . Processor . | . . . . . Hackware . | . . . . . Protection . | . . . . . Artifact . | . . . . . Weapon 18 | . 5 8 . 5 Energy Gun 4 | . 1 3 . . Energy Cannon . | . . . . . Ballistic Gun 7 | . 2 2 . 3 Ballistic Cannon . | . . . . . Launcher 6 | . 1 3 . 2 Special Weapon . | . . . . . Impact Weapon . | . . . . . Slashing Weapon . | . . . . . Piercing Weapon . | . . . . . Special Melee Weapon 1 | . 1 . . . Unidentified Prototypes . | . . . . . Parts Lost 14 | . . 6 . 8 Power 3 | . . 1 . 2 Propulsion 4 | . . 2 . 2 Utility . | . . . . . Weapon 7 | . . 3 . 4 Highest Loss Streak 7 | . . 3 . 7 Average Slot Usage (%) 93 | . 92 93 100 96 Engine 13 | . 14 13 14 11 Leg 28 | . 28 28 28 28 Storage 25 | . 21 28 28 26 Energy Gun 8 | . 13 8 . . Ballistic Gun 15 | . 12 13 28 23 Naked Turns . | . . . . . Heaviest Build 29 | 9 27 28 27 29 Greatest Support 20 | 20 20 20 20 20 Greatest Overweight (x) 2 | . 1 1 1 2 Average Overweight (x) . | . . 1 1 1 Largest Inventory Capacity 12 | 6 12 12 12 12 Average Capacity 10 | 5 9 12 12 11 Most Carried 12 | 6 12 12 10 12 Average Carried 8 | 4 8 10 10 10 Final Capacity 12 | 6 12 12 12 10 Final Carried 12 | 6 12 10 10 8 Class Distribution -------------------- 73% | Mutant 26% | Scavenger-Mutant Dominant Class ---------------- Mutant | -10/Materials Mutant | -10/Mines Scavenger-Mutant | -10/Exiles Scavenger-Mutant | -9/Mines Resources | -11 -10 -10 -10 -9 ----------- Run | Scr Mat Min Exi Min Matter Collected 580 | 202 119 157 . 102 Remotely . | . . . . . Salvage Created 494 | . 218 159 . 117 Parts 42 | . 21 14 . 7 Haulers Intercepted . | . . . . . Recyclers Shooed 1 | . . . . 1 Parts Field Recycled . | . . . . . Retrieved Matter . | . . . . . Parts Self-Destructed . | . . . . . Prevented . | . . . . . Kills | -11 -10 -10 -10 -9 ------- Run | Scr Mat Min Exi Min Combat Hostiles Destroyed 29 | . 7 13 . 9 Guns 11 | . 4 5 . 2 AOE 18 | . 3 8 . 7 Classes Destroyed 6 | . 4 . . 2 Worker 2 | . 1 1 . . Watcher 1 | . 1 . . . Swarmer 17 | . 3 11 . 3 Grunt 7 | . 4 2 . 1 Brawler 1 | . . . . 1 Assembled 4 | . . . . 4 Best Kill Streak 6 | . 5 6 . 4 Combat Bots Only 5 | . 3 5 . 4 Max Kills in Single Turn 3 | . 2 3 . 3 Gunslinging . | . . . . . Exploded 3 | . 2 2 . 3 Melee . | . . . . . Uniques/NPCs Destroyed . | . . . . . Combat | -11 -10 -10 -10 -9 -------- Run | Scr Mat Min Exi Min Damage Taken 1441 | . 153 602 . 686 Core 259 | . 19 134 . 106 Absorbed by Shields . | . . . . . Core Remaining (%) 100 | 100 . . . . Volleys Fired 79 | . 23 41 . 15 Largest 2 | . 2 2 . 2 Hottest 90 | . 60 90 . 40 Shots Fired 118 | . 43 53 . 22 Gun 98 | . 40 43 . 15 Cannon . | . . . . . Launcher 20 | . 3 10 . 7 Special . | . . . . . Kinetic 55 | . 20 20 . 15 Thermal 43 | . 20 23 . . Explosive 20 | . 3 10 . 7 Electromagnetic . | . . . . . Robot Hit Streak 8 | . 6 8 . 8 Robot Miss Streak 3 | . 3 3 . 1 Penetration Max . | . . . . . Secondary Targets . | . . . . . Shots Hit Robots 66 | . 23 31 . 12 Core Hits 59 | . 16 25 . 18 Critical Hits 1 | . 1 . . . Critical Kills 1 | . 1 . . . Critical Parts Destroyed . | . . . . . Melee Attacks . | . . . . . Impact . | . . . . . Slashing . | . . . . . Piercing . | . . . . . Sneak Attacks . | . . . . . Combat Hostiles . | . . . . . Follow-up Attacks . | . . . . . Damage Inflicted 1856 | . 511 798 . 547 Guns 568 | . 220 262 . 86 Cannons . | . . . . . Explosions 1288 | . 291 536 . 461 Melee . | . . . . . Ramming . | . . . . . Kinetic 241 | . 72 83 . 86 Thermal 327 | . 148 179 . . Explosive 1288 | . 291 536 . 461 Electromagnetic . | . . . . . Impact . | . . . . . Slashing . | . . . . . Piercing . | . . . . . Highest Corruption 1 | . . . . 1 Average Corruption 1 | . . . . 1 Corruption Purged . | . . . . . Overload Shots . | . . . . . Overflow Damage 11 | . . 10 . 1 Projectiles . | . . . . . Explosions 11 | . . 10 . 1 Melee . | . . . . . Knockbacks . | . . . . . Impact . | . . . . . Kinetic . | . . . . . Secondary . | . . . . . Self-Inflicted Damage 33 | . . . . 33 Shots 1 | . . . . 1 Rammed . | . . . . . Targets Rammed . | . . . . . Kicked . | . . . . . Crushed . | . . . . . Highest Temperature 308 | . 76 308 . 28 Average Temperature 88 | . 25 142 . 11 Received Heat Transfer 367 | . 72 183 . 112 Siege Activations . | . . . . . Robots Corrupted . | . . . . . Combat Hostiles . | . . . . . Parts Fried . | . . . . . Impact Corruptions . | . . . . . Robots Melted . | . . . . . Combat Hostiles . | . . . . . Parts Melted . | . . . . . Heat Transferred 820 | . 325 495 . . Parts Sabotaged . | . . . . . Parts Stolen . | . . . . . Parts Stripped . | . . . . . Power Chain Reactions . | . . . . . Missiles Intercepted . | . . . . . Alert | -11 -10 -10 -10 -9 ------- Run | Scr Mat Min Exi Min Peak Influence 390 | . 272 390 . 125 Initial 105 | . . 105 . . Average 148 | . 107 284 . 66 Maximum Alert Level 1 | . 1 1 . . Low Security (%) 67 | 100 80 25 . 100 Level 1 32 | . 19 74 . . Level 2 . | . . . . . Level 3 . | . . . . . Level 4 . | . . . . . Level 5 . | . . . . . High Security . | . . . . . Max Security . | . . . . . Squads Dispatched 2 | . 1 . . 1 Investigation . | . . . . . Extermination . | . . . . . Reinforcement 2 | . 1 . . 1 Assault . | . . . . . Garrison . | . . . . . Intercept . | . . . . . Construction Impeded 1 | . . . . 1 Haulers Reinforced . | . . . . . Stealth | -11 -10 -10 -10 -9 --------- Run | Scr Mat Min Exi Min Distress Signals . | . . . . . Communications Jammed . | . . . . . Distress Signals . | . . . . . Times Spotted 50 | . 12 14 . 24 Peak Tracking Total 19 | . 4 4 . 19 Tactical Retreats . | . . . . . Traps | -11 -10 -10 -10 -9 ------- Run | Scr Mat Min Exi Min Traps Triggered . | . . . . . Indirectly . | . . . . . Trap Hack Attempts . | . . . . . Triggered . | . . . . . Disarmed . | . . . . . Reprogrammed . | . . . . . Reused . | . . . . . Traps Extracted . | . . . . . Installed . | . . . . . Triggered . | . . . . . Machines | -11 -10 -10 -10 -9 ---------- Run | Scr Mat Min Exi Min Machines Disabled 2 | . 1 1 . . Max in Single Turn 1 | . 1 1 . . Machines Sabotaged . | . . . . . Garrisons Compromised . | . . . . . Overloaded Fab Kills . | . . . . . Fab Network Shutdowns . | . . . . . Hacking | -11 -10 -10 -10 -9 --------- Run | Scr Mat Min Exi Min Machines Accessed 2 | . 2 . . . Terminals 1 | . 1 . . . Fabricators . | . . . . . Repair Stations . | . . . . . Recycling Units 1 | . 1 . . . Scanalyzers . | . . . . . Garrison Access . | . . . . . Total Hacks 4 | . 4 . . . Successful 2 | . 2 . . . Failed 2 | . 2 . . . Catastrophic . | . . . . . Database Lockouts . | . . . . . Manual 4 | . 4 . . . Terminals 3 | . 3 . . . Fabricators . | . . . . . Repair Stations . | . . . . . Recycling Units 1 | . 1 . . . Scanalyzers . | . . . . . Garrison Access . | . . . . . Terminal Hacks . | . . . . . Fabricator Hacks . | . . . . . Repair Station Hacks . | . . . . . Recycling Unit Hacks . | . . . . . Scanalyzer . | . . . . . Garrison Access Hacks . | . . . . . Unauthorized Hacks 2 | . 2 . . . Terminals 1 | . 1 . . . Botnet 1 | . 1 . . . Fabricators . | . . . . . Repair Stations . | . . . . . Recycling Units 1 | . 1 . . . Recyclers 1 | . 1 . . . Scanalyzers . | . . . . . Garrison Access . | . . . . . Data Cores Recovered . | . . . . . Used . | . . . . . Hacking Detections 1 | . 1 . . . Full Trace Events . | . . . . . Feedback Events . | . . . . . Feedback Blocked . | . . . . . Robot Schematics Acquired . | . . . . . Robots Built . | . . . . . Matter . | . . . . . Time . | . . . . . Total Robot Build Rating . | . . . . . Part Schematics Acquired . | . . . . . Parts Built . | . . . . . Matter . | . . . . . Time . | . . . . . Total Part Build Rating . | . . . . . Parts Repaired . | . . . . . Time . | . . . . . Parts Recycled . | . . . . . Recycled Matter . | . . . . . Retrieved Matter . | . . . . . Retrieved Components . | . . . . . Parts Scanalyzed . | . . . . . Part Schematics Acquired . | . . . . . Parts Damaged . | . . . . . Bothacking | -11 -10 -10 -10 -9 ------------ Run | Scr Mat Min Exi Min Used RIF Installer . | . . . . . Robots Hacked . | . . . . . Non-combat . | . . . . . Combat . | . . . . . Robot Hacks Applied . | . . . . . Relay Couplers Released . | . . . . . Robots Rewired . | . . . . . Allies Hacked . | . . . . . Hacks Repelled . | . . . . . Allies | -11 -10 -10 -10 -9 -------- Run | Scr Mat Min Exi Min Total Allies . | . . . . . Largest Group . | . . . . . Highest-Rated Group . | . . . . . Highest-Rated Ally . | . . . . . Total Orders . | . . . . . Ally Attacks . | . . . . . Total Damage . | . . . . . Kills . | . . . . . Allies Corrupted . | . . . . . Allies Melted . | . . . . . Intel | -11 -10 -10 -10 -9 ------- Run | Scr Mat Min Exi Min Robot Analysis Total . | . . . . . Derelict Logs Recovered . | . . . . . Drone Launches . | . . . . . Drone Recoveries . | . . . . . Exploration | -11 -10 -10 -10 -9 ------------- Run | Scr Mat Min Exi Min Turns Passed 935 | 80 398 285 47 125 Spaces Moved 473 | 56 215 119 32 51 Core 7 | 7 . . . . Treads . | . . . . . Legs 466 | 49 215 119 32 51 Wheels . | . . . . . Hover . | . . . . . Flight . | . . . . . Fastest Speed 50 | 50 120 150 150 120 Average Speed 138 | 111 135 150 150 150 Slowest Speed 180 | 120 150 150 150 180 Overloaded Moves . | . . . . . Propulsion Burnouts . | . . . . . Robots Hopped . | . . . . . Cave-ins Triggered . | . . . . . Exploration Rate (%) 21 | 4 30 44 8 19 Regions Visited 4 Branch Regions 3 Pre-discovered Areas . | . . . . . Known Exits Taken . | . . . . . Unknown Exits Taken 4 | 1 1 1 1 . Scrap Searched . | . . . . . Spaces Dug . | . . . . . Terrain Destroyed 122 | . 12 59 . 51 Melee . | . . . . . Projectile . | . . . . . AOE 122 | . 12 59 . 51 Terrain Rammed . | . . . . . Walls Destroyed . | . . . . . Machines Disabled . | . . . . . Actions | -11 -10 -10 -10 -9 --------- Run | Scr Mat Min Exi Min Total 641 | 73 283 175 31 79 Wait 27 | 3 23 . . 1 Move 469 | 55 214 118 31 51 Hop . | . . . . . Pick Up 27 | 9 11 4 . 3 Fast Attach 5 | 3 2 . . . Attach 15 | 1 2 7 . 5 Detach 1 | . . 1 . . Swap 10 | . 3 4 . 3 Drop 8 | 2 5 . . 1 Fire 79 | . 23 41 . 15 Melee . | . . . . . Ram . | . . . . . Kick . | . . . . . Crush . | . . . . . Escape Stasis . | . . . . . Rewire . | . . . . . Trap . | . . . . . Miscellaneous . | . . . . . Route ------- -11/Scrapyard -10/Materials -10/Mines -10/Exiles -9/Mines History --------- Turn | Location | Event 7 | -11/Scrapyard | Discovered new exit (range 15) 81 | -11/Scrapyard | Entered Materials 309 | -10/Materials | Build established: Mutant 428 | -10/Materials | Discovered new exit (range 6) 479 | -10/Materials | Entered Mines 674 | -10/Mines | Core integrity fell below 50% 704 | -10/Mines | Lost 3 parts (1p1n1w) 756 | -10/Mines | Deemed a non-threat by the Exiles lab entrance 756 | -10/Mines | Discovered new exit (range 5) 764 | -10/Mines | Entered Exiles 791 | -10/Exiles | Discovered new exit (range 14) 811 | -10/Exiles | Entered Mines 909 | -9/Mines | Assembled infested the area 915 | -9/Mines | Core integrity fell below 20% 936 | -9/Mines | Destroyed by as-68097 with Assembled Rifle Last Messages --------------- 00922_ The unstable cave ceiling collapses. 00922_ Dropped Sml. Storage Unit. 00924_ Aluminum Leg destroyed. 00924_ K-01 Serf collects debris. 00925_ K-01 Serf destroyed. 00925_ R-06 Scavenger collects Sml. Matter Pod. 00926_ U-05 Engineer lays Concrete. 00927_ as-65976 sneak attacks. 00927_ as-08012 sneak attacks. 00927_ R-06 Scavenger destroyed. 00930_ as-08012 destroyed. 00930_ Lgt. Nuclear Core destroyed. 00931_ as-87849 sneak attacks. 00931_ R-06 Scavenger destroyed. 00932_ Destroyed Asb. Hover Unit. 00932_ as-24446 destroyed. 00932_ as-42540 destroyed. 00932_ as-00185 destroyed. 00934_ Grenade Launcher destroyed. 00936_ Lgt. Assault Rifle destroyed. Map ----- +----------------------------------------------------+ | ?????????????????????????????????????????????????? | | ?????????????????????????????????????????????????? | | ?????????????????????????????????????????????????? | | ?????????????????????????????????????????????????? | | ?????????????????????????????????????????????????? | | ?????????????????????????????????????????????????? | | ?????????????????????????????????????????????????? | | ?????????????????????????????????????????????????? | | ?????????????????????????????????????????????????? | | ?????????????????????????????????????????????????? | | ?????????????????????????????????????####????????? | | ?????????????????????????????????##?## ##???????? | | ????????????????????????????????## ## #???????? | | ????????????????????????????????# #???????? | | ????????????????????????????????# ##???????? | | ????????????????????????????????## [ ###????????? | | ??????????????????##?????????????## ##??????????? | | ?????????????????? ????????#####?# ##??????????? | | ??????????????????# #?????### ### #??????????? | | ??????????????????# #????## #??????????? | | ????????????????### #????# ## #??????????? | | ????????????##### ##### #### #??????????? | | ????????????# ##??####??????????? | | ????????????#???## = ##?????????????????? | | ????????????# ??# a*%=% a #??????????????????? | | ?????######## ### * !% @ ##??????????????????? | | ????? $ g a%a aa | ########???????????????????? | | ????? aa a =! #???????????????????????? | | ??????###### ##% ##??????????????????????? | | ???????????#?# #??????????????????????? | | ?????????????# #?????????????????????? | | ??????? # #?????????????????????? | | ??????####### # ##?????????????????????? | | ????????????# # ## ##??????????????????????? | | ??????????? ?###???????????????????????? | | ?????????? ##??????????????????????????? | | ?????????? #???????????????????????????? | | ??????????# ###???????????????????????????? | | ?????????? ?????????????????????????????? | | ????????? ?????????????????????????????? | | ?????????## ?????????????????????????????? | | ??????????# ?????????????????????????????? | | ??????????## ?????????????????????????????? | | ???????????## ?????????????????????????????? | | ?????????????? ?????????????????????????????? | | ???????????????? ?????????????????????????????? | | ?????????????????????????????????????????????????? | | ?????????????????????????????????????????????????? | | ?????????????????????????????????????????????????? | | ?????????????????????????????????????????????????? | +----------------------------------------------------+ Best States ------------- Heat Dissipation 25 Energy Generation 14 Energy Capacity 250 Matter Stores 300 Matter Capacity 300 Sight Range 16 Terrain Scan Density 10 Evasion (%) 50 Item Schematics ----------------- None Robot Schematics ------------------ None Fabricated ------------ Nothing Alien Tech Used ----------------- None Achievements -------------- True Hacker Challenges ------------ None Game ------ Seed GravityAntimatterCycler Manual? 0 Play Time 00:33:29 Cumulative 18.6 hours Start 2021.06.21 @ 17:32:12 End 2021.06.22 @ 16:56:17 Sessions 9 Manual Loads 0 Difficulty Rogue Special Mode None Game No. 13 Rogue 13 Adventurer 0 Explorer 0 Win Type - Total 0 Types 0/0/0/0/0/0/0/0/0 Lore% 10 Gallery% 19 Achievement% 12 Wizard Run 0 Options --------- ASCII 0 Keyboard 0 Movement Mouse Keybinds 0 Fullscreen 2 Font 18/SmallcapsGlow Map View 76x50 Tactical HUD 1 Map Filters NONE Filters NONE Steam 1 RUN: f89bdb11-f0ef-40f1-b995-4df0c5aff8de